fUSD/lending_fUSD_20240331
["ID","MTS","AMOUNT","RATE_DAILY","PERIOD"]
[321135172,1711907462560,-10099.07,0.00055616,120]
[321135173,1711907462569,-500.0,0.00055616,120]
[321135174,1711907462578,-546.81,0.00055616,120]
[321135175,1711907462588,-500.0,0.00055616,120]
[321135176,1711907462597,-500.0,0.00055616,120]
[321135177,1711907462607,-180.78428263,0.00055616,120]
[321135178,1711907462616,-500.0,0.00055616,120]
[321135179,1711907462625,-500.0,0.00055616,120]
[321135180,1711907462635,-500.0,0.00055616,120]
[321135181,1711907462645,-500.0,0.00055616,120]
[321135182,1711907462654,-500.0,0.00055616,120]
[321135183,1711907462663,-500.0,0.00055616,120]
[321135184,1711907462672,-500.0,0.00055616,120]
[321135185,1711907462681,-500.0,0.00055616,120]
[321135186,1711907462691,-447.88718179,0.00055616,120]
[321135187,1711907462700,-500.0,0.00055616,120]
[321135188,1711907462709,-500.0,0.00055616,120]
[321135189,1711907462718,-500.0,0.00055616,120]
[321135190,1711907462727,-500.0,0.00055616,120]
[321135191,1711907462736,-500.0,0.00055616,120]
[321135192,1711907462745,-500.0,0.00055616,120]
[321135193,1711907462754,-500.0,0.00055616,120]
[321135194,1711907462763,-500.0,0.00055616,120]
[321135195,1711907462773,-500.0,0.00055616,120]
[321135196,1711907462782,-500.0,0.00055616,120]
[321135197,1711907462791,-500.0,0.00055616,120]
[321135198,1711907462800,-500.0,0.00055616,120]
[321135199,1711907462810,-500.0,0.00055616,120]
[321135200,1711907462819,-500.0,0.00055616,120]
[321135201,1711907462828,-500.0,0.00055616,120]
[321135202,1711907462837,-500.0,0.00055616,120]
[321135203,1711907462847,-500.0,0.00055616,120]
[321135204,1711907462856,-5131.78,0.00055616,120]
[321135205,1711907462866,-500.0,0.00055616,120]
[321135206,1711907462875,-500.0,0.00055616,120]
[321135207,1711907462884,-1715.12,0.00055616,120]
[321135208,1711907462894,-500.0,0.00055616,120]
[321135209,1711907462903,-500.0,0.00055616,120]
[321135210,1711907462913,-500.0,0.00055616,120]
[321135211,1711907462922,-500.0,0.00055616,120]
[321135212,1711907462932,-500.0,0.00055616,120]
[321135213,1711907462941,-500.0,0.00055616,120]
[321135214,1711907462951,-500.0,0.00055616,120]
[321135215,1711907462960,-500.0,0.00055616,120]
[321135216,1711907462970,-500.0,0.00055616,120]
[321135217,1711907462980,-500.0,0.00055616,120]
[321135218,1711907462989,-500.0,0.00055616,120]
[321135219,1711907462998,-500.0,0.00055616,120]
[321135220,1711907463010,-626.85,0.00055616,120]
[321135221,1711907463020,-947.24,0.00055616,120]
[321135222,1711907463030,-500.0,0.00055616,120]
[321135223,1711907463040,-500.0,0.00055616,120]
[321135224,1711907463050,-500.0,0.00055616,120]
[321135225,1711907463061,-500.0,0.00055616,120]
[321135226,1711907463070,-500.0,0.00055616,120]
[321135227,1711907463079,-500.0,0.00055616,120]
[321135228,1711907463088,-649.68,0.00055616,120]
[321135229,1711907463097,-500.0,0.00055616,120]
[321135230,1711907463107,-500.0,0.00055616,120]
[321135231,1711907463117,-500.0,0.00055616,120]
[321135232,1711907463126,-500.0,0.00055616,120]
[321135233,1711907463135,-500.0,0.00055616,120]
[321135234,1711907463144,-6434.68,0.00055616,120]
[321135235,1711907463154,-916.81,0.00055616,120]
[321135236,1711907463163,-500.0,0.00055616,120]
[321135237,1711907463172,-500.0,0.00055616,120]
[321135238,1711907463181,-500.0,0.00055616,120]
[321135239,1711907463190,-2281.86,0.00055616,120]
[321135240,1711907463199,-500.0,0.00055616,120]
[321135241,1711907463209,-500.0,0.00055616,120]
[321135242,1711907463218,-500.0,0.00055616,120]
[321135243,1711907463227,-500.0,0.00055616,120]
[321135244,1711907463237,-1094.52,0.00055616,120]
[321135245,1711907463247,-1655.18,0.00055616,120]
[321135246,1711907463259,-579.04,0.00055616,120]
[321135247,1711907463269,-500.0,0.00055616,120]
[321135248,1711907463278,-531.28,0.00055616,120]
[321135249,1711907463288,-268.29586727,0.00055616,120]
[321135250,1711907463297,-1439.29,0.00055616,120]
[321135251,1711907463306,-500.0,0.00055616,120]
[321135252,1711907463316,-372.51064404,0.00055616,120]
[321135253,1711907463326,-500.0,0.00055616,120]
[321135254,1711907463338,-500.0,0.00055616,120]
[321135255,1711907463347,-500.0,0.00055616,120]
[321135256,1711907463357,-500.0,0.00055616,120]
[321135257,1711907463367,-1210.67,0.00055616,120]
[321135258,1711907463377,-500.0,0.00055616,120]
[321135259,1711907463387,-401.18691685,0.00055616,120]
[321135260,1711907463397,-627.19,0.00055616,120]
[321135261,1711907463406,-500.0,0.00055616,120]
[321135262,1711907463417,-2658.74,0.00055616,120]
[321135263,1711907463427,-500.0,0.00055616,120]
[321135264,1711907463436,-500.0,0.00055616,120]
[321135265,1711907463445,-520.92,0.00055616,120]
[321135266,1711907463454,-3592.37,0.00055616,120]
[321135267,1711907463463,-500.0,0.00055616,120]
[321135268,1711907463472,-500.0,0.00055616,120]
[321135269,1711907463482,-500.0,0.00055616,120]
[321135270,1711907463491,-500.0,0.00055616,120]
[321135271,1711907463500,-253.11240585,0.00055616,120]
[321135272,1711907463509,-500.0,0.00055616,120]
[321135273,1711907463519,-611.83,0.00055616,120]
[321135274,1711907463529,-500.0,0.00055616,120]
[321135275,1711907463538,-500.0,0.00055616,120]
[321135276,1711907463547,-500.0,0.00055616,120]
[321135277,1711907463557,-500.0,0.00055616,120]
[321135278,1711907463566,-500.0,0.00055616,120]
[321135279,1711907463575,-500.0,0.00055616,120]
[321135280,1711907463584,-500.0,0.00055616,120]
[321135281,1711907463594,-1276.31,0.00055616,120]
[321135282,1711907463604,-500.0,0.00055616,120]
[321135283,1711907463614,-500.0,0.00055616,120]
[321135284,1711907463624,-2818.95,0.00055616,120]
[321135285,1711907463637,-577.42,0.00055616,120]
[321135286,1711907463647,-500.0,0.00055616,120]
[321135287,1711907463656,-1477.96,0.00055616,120]
[321135288,1711907463665,-500.0,0.00055616,120]
[321135289,1711907463675,-1654.56,0.00055616,120]
[321135290,1711907463684,-602.92,0.00055616,120]
[321135291,1711907463694,-591.88,0.00055616,120]
[321135292,1711907463703,-500.0,0.00055616,120]
[321135293,1711907463713,-500.0,0.00055616,120]
[321135294,1711907463722,-811.9,0.00055616,120]
[321135295,1711907463731,-500.0,0.00055616,120]
[321135296,1711907463741,-256.43579974,0.00055616,120]
[321135297,1711907463751,-500.0,0.00055616,120]
[321135298,1711907463761,-1667.23,0.00055616,120]
[321135299,1711907463770,-540.65,0.00055616,120]
[321135300,1711907463780,-500.0,0.00055616,120]
[321135301,1711907463789,-197.843539,0.00055616,120]
[321135302,1711907463799,-171.1483932,0.00055616,120]
[321135303,1711907463809,-500.0,0.00055616,120]
[321135304,1711907463818,-197.843539,0.00055616,120]
[321135305,1711907463828,-500.0,0.00055616,120]
[321135306,1711907463838,-500.0,0.00055616,120]
[321135307,1711907463848,-500.0,0.00055616,120]
[321135308,1711907463857,-718.34,0.00055616,120]
[321135309,1711907463866,-500.0,0.00055616,120]
[321135310,1711907463875,-500.0,0.00055616,120]
[321135311,1711907463884,-1412.62,0.00055616,120]
[321135312,1711907463893,-505.8,0.00055616,120]
[321135313,1711907463902,-500.0,0.00055616,120]
[321135314,1711907463911,-2163.44,0.00055616,120]
[321135315,1711907463920,-500.0,0.00055616,120]
[321135316,1711907463930,-500.0,0.00055616,120]
[321135317,1711907463939,-500.0,0.00055616,120]
[321135318,1711907463948,-500.0,0.00055616,120]
[321135319,1711907463959,-4640.93,0.00055616,120]
[321135320,1711907463967,-500.0,0.00055616,120]
[321135321,1711907463976,-2308.94,0.00055616,120]
[321135322,1711907463986,-500.0,0.00055616,120]
[321135323,1711907463994,-4439.46,0.00055616,120]
[321135324,1711907464003,-500.0,0.00055616,120]
[321135325,1711907464013,-500.0,0.00055616,120]
[321135326,1711907464023,-713.74,0.00055616,120]
[321135327,1711907464032,-574.37,0.00055616,120]
[321135328,1711907464043,-500.0,0.00055616,120]
[321135329,1711907464051,-500.0,0.00055616,120]
[321135330,1711907464061,-500.0,0.00055616,120]
[321135331,1711907464070,-818.49,0.00055616,120]
[321135332,1711907464079,-2084.69,0.00055616,120]
[321135333,1711907464088,-2318.29,0.00055616,120]
[321135334,1711907464097,-1422.03,0.00055616,120]
[321135335,1711907464107,-500.0,0.00055616,120]
[321135336,1711907464116,-229.29,0.00055616,120]
[321135337,1711907464125,-500.0,0.00055616,2]
[321135338,1711907464134,-582.7,0.00055616,120]
[321135339,1711907464143,-526.31544577,0.00055616,120]
[321135340,1711907464152,-500.0,0.00055616,120]
[321135341,1711907464161,-500.0,0.00055616,120]
[321135342,1711907464170,-4939.3,0.00055616,120]
[321135343,1711907464180,-500.0,0.00055616,120]
[321135344,1711907464189,-556.80985029,0.00055616,120]
[321135345,1711907464199,-500.0,0.00055616,120]
[321135346,1711907464208,-500.0,0.00055616,120]
[321135347,1711907464217,-500.0,0.00055616,120]
[321135348,1711907464227,-500.0,0.00055616,120]
[321135349,1711907464236,-500.0,0.00055616,120]
[321135350,1711907464246,-6488.58,0.00055616,120]
[321135351,1711907464255,-500.0,0.00055616,120]
[321135352,1711907464383,-500.0,0.00055616,120]
[321135353,1711907464393,-500.0,0.00055616,120]
[321135354,1711907464403,-500.0,0.00055616,120]
[321135355,1711907464416,-3218.95,0.00055616,120]
[321135356,1711907464427,-500.0,0.00055616,120]
[321135357,1711907464436,-1667.88,0.00055616,120]
[321135358,1711907464445,-500.0,0.00055616,120]
[321135359,1711907464457,-500.0,0.00055616,120]
[321135360,1711907464466,-500.0,0.00055616,120]
[321135361,1711907464475,-677.03,0.00055616,120]
[321135362,1711907464485,-513.19,0.00055616,120]
[321135363,1711907464494,-848.39,0.00055616,120]
[321135364,1711907464504,-500.0,0.00055616,120]
[321135365,1711907464513,-500.0,0.00055616,120]
[321135366,1711907464523,-500.0,0.00055616,120]
[321135367,1711907464533,-500.0,0.00055616,120]
[321135368,1711907464543,-2067.47,0.00055616,120]
[321135369,1711907464552,-500.0,0.00055616,120]
[321135370,1711907464562,-500.0,0.00055616,120]
[321135371,1711907464571,-830.01,0.00055616,120]
[321135372,1711907464580,-500.0,0.00055616,120]
[321135373,1711907464589,-500.0,0.00055616,120]
[321135374,1711907464598,-1115.96,0.00055616,120]
[321135375,1711907464608,-500.0,0.00055616,120]
[321135376,1711907464618,-500.0,0.00055616,120]
[321135377,1711907464627,-500.0,0.00055616,120]
[321135378,1711907464636,-500.0,0.00055616,120]
[321135379,1711907464646,-722.46,0.00055616,120]
[321135380,1711907464656,-500.0,0.00055616,120]
[321135381,1711907464665,-500.0,0.00055616,120]
[321135382,1711907464674,-2662.12,0.00055616,120]
[321135383,1711907464684,-500.0,0.00055616,120]
[321135384,1711907464693,-500.0,0.00055616,120]
[321135385,1711907464702,-714.15,0.00055616,120]
[321135386,1711907464712,-500.0,0.00055616,120]
[321135387,1711907464721,-500.0,0.00055616,120]
[321135388,1711907464731,-500.0,0.00055616,120]
[321135389,1711907464740,-500.0,0.00055616,120]
[321135390,1711907464749,-500.0,0.00055616,120]
[321135391,1711907464759,-500.0,0.00055616,120]
[321135392,1711907464768,-1147.71,0.00055616,120]
[321135393,1711907464777,-500.0,0.00055616,120]
[321135394,1711907464787,-1997.29,0.00055616,120]
[321135395,1711907464796,-163.18,0.00055616,120]
[321135396,1711907464805,-7535.35,0.00055616,120]
[321135397,1711907464814,-500.0,0.00055616,120]
[321135398,1711907464823,-500.0,0.00055616,120]
[321135399,1711907464833,-500.0,0.00055616,120]
[321135400,1711907464843,-500.0,0.00055616,120]
[321135401,1711907464853,-500.0,0.00055616,120]
[321135402,1711907464863,-252.88,0.00055616,120]
[321135403,1711907464872,-500.0,0.00055616,120]
[321135404,1711907464882,-3990.2,0.00055616,120]
[321135405,1711907464892,-500.0,0.00055616,120]
[321135406,1711907464901,-500.0,0.00055616,120]
[321135407,1711907464911,-2974.84,0.00055616,120]
[321135408,1711907464921,-500.0,0.00055616,120]
[321135409,1711907464930,-500.0,0.00055616,120]
[321135410,1711907464940,-500.0,0.00055616,120]
[321135411,1711907464950,-500.0,0.00055616,7]
[321135412,1711907464959,-624.32,0.00055616,120]
[321135413,1711907464970,-500.0,0.00055616,120]
[321135414,1711907464979,-500.0,0.00055616,120]
[321135415,1711907464989,-500.0,0.00055616,120]
[321135416,1711907464999,-500.0,0.00055616,120]
[321135417,1711907465008,-500.0,0.00055616,120]
[321135418,1711907465018,-500.0,0.00055616,120]
[321135419,1711907465028,-614.73,0.00055616,120]
[321135420,1711907465038,-500.0,0.00055616,120]
[321135421,1711907465048,-500.0,0.00055616,120]
[321135422,1711907465060,-500.0,0.00055616,120]
[321135423,1711907465072,-500.0,0.00055616,120]
[321135424,1711907465084,-500.0,0.00055616,120]
[321135425,1711907465095,-500.0,0.00055616,120]
[321135426,1711907465105,-515.94,0.00055616,120]
[321135427,1711907465118,-500.0,0.00055616,120]
[321135428,1711907465129,-895.49,0.00055616,120]
[321135429,1711907465141,-744.4,0.00055616,120]
[321135430,1711907465152,-500.0,0.00055616,120]
[321135431,1711907465163,-500.0,0.00055616,120]
[321135432,1711907465175,-500.0,0.00055616,120]
[321135433,1711907465186,-500.0,0.00055616,120]
[321135434,1711907465196,-500.0,0.00055616,120]
[321135435,1711907465206,-1000.0,0.00055639,120]
[321135436,1711907465217,-536.78008169,0.000557,55]
[321135437,1711907465227,-160.52748431,0.0005588,120]
[321135438,1711907465237,-500.0,0.0005589,120]
[321135439,1711907465247,-498.21,0.0005589,120]
[321135440,1711907465257,-313.81,0.0005589,120]
[321135441,1711907465267,-304.12,0.0005589,120]
[321135442,1711907465277,-203.78,0.0005589,120]
[321135443,1711907465287,-439.24,0.0005589,120]
[321135444,1711907465298,-581.96,0.0005589,120]
[321135445,1711907465308,-500.0,0.0005589,120]
[321135446,1711907465318,-500.0,0.0005589,120]
[321135447,1711907465329,-500.0,0.0005589,120]
[321135448,1711907465348,-500.0,0.0005589,120]
[321135449,1711907465363,-500.0,0.0005589,120]
[321135450,1711907465373,-500.0,0.0005589,120]
[321135451,1711907465383,-539.32,0.0005589,120]
[321135452,1711907465393,-352.83,0.0005589,120]
[321135453,1711907465404,-500.0,0.0005589,120]
[321135454,1711907465414,-500.0,0.0005589,120]
[321135455,1711907465425,-500.0,0.0005589,120]
[321135456,1711907465435,-518.63,0.0005589,120]
[321135457,1711907465445,-500.0,0.0005589,120]
[321135458,1711907465456,-547.98,0.0005589,120]
[321135459,1711907465467,-151.6,0.0005589,120]
[321135460,1711907465476,-500.0,0.0005589,120]
[321135461,1711907465486,-500.0,0.0005589,120]
[321135462,1711907465495,-278.3,0.0005589,120]
[321135463,1711907465505,-500.0,0.0005589,120]
[321135464,1711907465515,-235.63,0.0005589,120]
[321135465,1711907465526,-500.0,0.0005589,120]
[321135466,1711907465536,-434.77,0.0005589,120]
[321135467,1711907465546,-500.0,0.0005589,120]
[321135468,1711907465558,-500.0,0.0005589,120]
[321135469,1711907465568,-500.0,0.0005589,120]
[321135470,1711907465579,-237.8,0.0005589,120]
[321135471,1711907465590,-445.38,0.0005589,120]
[321135472,1711907465600,-500.0,0.0005589,120]
[321135473,1711907465611,-208.02,0.0005589,120]
[321135474,1711907465621,-500.0,0.0005589,120]
[321135475,1711907465631,-500.0,0.0005589,120]
[321135476,1711907465642,-500.0,0.0005589,120]
[321135477,1711907465653,-700.81,0.0005589,120]
[321135478,1711907465664,-500.0,0.0005589,120]
[321135479,1711907465673,-500.0,0.0005589,120]
[321135480,1711907465683,-500.0,0.0005589,120]
[321135481,1711907465693,-500.0,0.0005589,120]
[321135482,1711907465702,-600.28,0.0005589,120]
[321135483,1711907465712,-500.0,0.0005589,120]
[321135484,1711907465722,-400.58,0.0005589,120]
[321135485,1711907465732,-275.35517143,0.0005589,120]
[321135486,1711907465741,-216.24,0.0005589,120]
[321135487,1711907465751,-500.0,0.0005589,120]
[321135488,1711907465761,-500.0,0.0005589,120]
[321135489,1711907465771,-505.88,0.0005589,120]
[321135490,1711907465781,-500.0,0.0005589,7]
[321135491,1711907465792,-500.0,0.0005589,120]
[321135492,1711907465802,-500.0,0.0005589,120]
[321135493,1711907465812,-500.0,0.0005589,120]
[321135494,1711907465823,-500.0,0.0005589,120]
[321135495,1711907465834,-500.0,0.0005589,120]
[321135496,1711907465845,-500.0,0.0005589,120]
[321135497,1711907465856,-519.95,0.0005589,120]
[321135498,1711907465866,-4907.73,0.0005589,120]
[321135499,1711907465878,-500.0,0.0005589,50]
[321135500,1711907465888,-500.0,0.0005589,120]
[321135501,1711907465899,-1609.87,0.0005589,120]
[321135502,1711907465909,-500.0,0.0005589,120]
[321135503,1711907465919,-500.0,0.0005589,120]
[321135504,1711907465931,-500.0,0.0005589,120]
[321135505,1711907465942,-500.0,0.0005589,120]
[321135506,1711907465952,-990.64,0.0005589,120]
[321135507,1711907465964,-500.0,0.0005589,120]
[321135508,1711907465975,-500.0,0.0005589,120]
[321135509,1711907465985,-500.0,0.0005589,120]
[321135510,1711907465995,-500.0,0.0005589,120]
[321135511,1711907466006,-10457.21,0.0005589,120]
[321135512,1711907466016,-500.0,0.0005589,120]
[321135513,1711907466027,-500.0,0.0005589,120]
[321135514,1711907466037,-500.0,0.0005589,120]
[321135515,1711907466047,-507.32,0.0005589,120]
[321135516,1711907466057,-964.49,0.0005589,120]
[321135517,1711907466070,-500.0,0.0005589,120]
[321135518,1711907466080,-500.0,0.0005589,120]
[321135519,1711907466091,-500.0,0.0005589,120]
[321135520,1711907466102,-500.0,0.0005589,120]
[321135521,1711907466114,-755.7,0.0005589,120]
[321135522,1711907466124,-500.0,0.0005589,120]
[321135523,1711907466135,-722.56,0.0005589,120]
[321135524,1711907466145,-500.0,0.0005589,120]
[321135525,1711907466155,-500.0,0.0005589,120]
[321135526,1711907466165,-372.25,0.0005589,120]
[321135527,1711907466175,-500.0,0.0005589,120]
[321135528,1711907466186,-500.0,0.0005589,120]
[321135529,1711907466196,-1026.37,0.0005589,120]
[321135530,1711907466205,-1126.75,0.0005589,120]
[321135531,1711907466216,-1688.27,0.0005589,21]
[321135532,1711907466226,-500.0,0.0005589,120]
[321135533,1711907466236,-500.0,0.0005589,120]
[321135534,1711907466246,-500.0,0.0005589,120]
[321135535,1711907466257,-500.0,0.0005589,120]
[321135536,1711907466268,-660.13,0.0005589,120]
[321135537,1711907466278,-500.0,0.0005589,120]
[321135538,1711907466288,-500.0,0.0005589,120]
[321135539,1711907466298,-500.0,0.0005589,120]
[321135540,1711907466310,-500.0,0.0005589,120]
[321135541,1711907466321,-500.0,0.0005589,120]
[321135542,1711907466333,-500.0,0.0005589,120]
[321135543,1711907466343,-500.0,0.0005589,120]
[321135544,1711907466353,-1092.39,0.0005589,120]
[321135545,1711907466364,-14029.33,0.0005589,120]
[321135546,1711907466375,-500.0,0.0005589,120]
[321135547,1711907466384,-1975.75,0.0005589,120]
[321135548,1711907466394,-500.0,0.0005589,120]
[321135549,1711907466404,-500.0,0.0005589,120]
[321135550,1711907466415,-500.0,0.0005589,120]
[321135551,1711907466424,-500.0,0.0005589,120]
[321135552,1711907466434,-500.0,0.0005589,120]
[321135553,1711907466444,-500.0,0.0005589,120]
[321135554,1711907466453,-500.0,0.0005589,120]
[321135555,1711907466463,-10099.07,0.0005589,120]
[321135556,1711907466472,-546.81,0.0005589,120]
[321135557,1711907466481,-500.0,0.0005589,120]
[321135558,1711907466491,-500.0,0.0005589,120]
[321135559,1711907466501,-500.0,0.0005589,120]
[321135560,1711907466510,-500.0,0.0005589,120]
[321135561,1711907466519,-500.0,0.0005589,120]
[321135562,1711907466529,-500.0,0.0005589,120]
[321135563,1711907466538,-500.0,0.0005589,120]
[321135564,1711907466548,-500.0,0.0005589,120]
[321135565,1711907466558,-500.0,0.0005589,120]
[321135566,1711907466568,-500.0,0.0005589,120]
[321135567,1711907466577,-500.0,0.0005589,120]
[321135568,1711907466586,-500.0,0.0005589,120]
[321135569,1711907466596,-500.0,0.0005589,120]
[321135570,1711907466605,-500.0,0.0005589,120]
[321135571,1711907466615,-392.76,0.0005589,120]
[321135572,1711907466625,-500.0,0.0005589,120]
[321135573,1711907466634,-500.0,0.0005589,120]
[321135574,1711907466644,-636.55712208,0.0005589,120]
[321135575,1711907466653,-520.07,0.0005589,120]
[321135576,1711907466662,-500.0,0.0005589,120]
[321135577,1711907466672,-5131.78,0.0005589,120]
[321135578,1711907466681,-1715.12,0.0005589,120]
[321135579,1711907466691,-500.0,0.0005589,120]
[321135580,1711907466700,-306.73,0.0005589,120]
[321135581,1711907466709,-500.0,0.0005589,120]
[321135582,1711907466718,-500.0,0.0005589,120]
[321135583,1711907466728,-462.0,0.0005589,120]
[321135584,1711907466737,-500.0,0.0005589,120]
[321135585,1711907466747,-500.0,0.0005589,120]
[321135586,1711907466756,-500.0,0.0005589,120]
[321135587,1711907466765,-500.0,0.0005589,120]
[321135588,1711907466775,-500.0,0.0005589,120]
[321135589,1711907466784,-500.0,0.0005589,120]
[321135590,1711907466793,-626.85,0.0005589,120]
[321135591,1711907466920,-947.24,0.0005589,120]
[321135592,1711907466931,-500.0,0.0005589,120]
[321135593,1711907466941,-500.0,0.0005589,120]
[321135594,1711907466951,-500.0,0.0005589,120]
[321135595,1711907466961,-500.0,0.0005589,120]
[321135596,1711907466971,-500.0,0.0005589,120]
[321135597,1711907466987,-649.68,0.0005589,120]
[321135598,1711907466998,-150.0,0.0005589,120]
[321135599,1711907467007,-326.72,0.0005589,120]
[321135600,1711907467022,-500.0,0.0005589,120]
[321135601,1711907467035,-500.0,0.0005589,120]
[321135602,1711907467046,-6434.68,0.0005589,120]
[321135603,1711907467057,-916.81,0.0005589,120]
[321135604,1711907467066,-500.0,0.0005589,120]
[321135605,1711907467088,-500.0,0.0005589,120]
[321135606,1711907467097,-2281.86,0.0005589,120]
[321135607,1711907467107,-500.0,0.0005589,120]
[321135608,1711907467117,-500.0,0.0005589,120]
[321135609,1711907467127,-1094.52,0.0005589,120]
[321135610,1711907467137,-1655.18,0.0005589,120]
[321135611,1711907467153,-531.28,0.0005589,120]
[321135612,1711907467164,-1439.29,0.0005589,120]
[321135613,1711907467181,-500.0,0.0005589,120]
[321135614,1711907467190,-614.52,0.0005589,120]
[321135615,1711907467200,-500.0,0.0005589,120]
[321135616,1711907467210,-1210.67,0.0005589,120]
[321135617,1711907467220,-170.14,0.0005589,120]
[321135618,1711907467229,-627.19,0.0005589,120]
[321135619,1711907467249,-2658.74,0.0005589,120]
[321135620,1711907467263,-3592.37,0.0005589,120]
[321135621,1711907467275,-500.0,0.0005589,120]
[321135622,1711907467284,-500.0,0.0005589,120]
[321135623,1711907467294,-500.0,0.0005589,120]
[321135624,1711907467303,-500.0,0.0005589,120]
[321135625,1711907467314,-611.83,0.0005589,120]
[321135626,1711907467323,-500.0,0.0005589,120]
[321135627,1711907467334,-361.92733814,0.0005589,120]
[321135628,1711907467346,-542.84,0.0005589,120]
[321135629,1711907467355,-500.0,0.0005589,120]
[321135630,1711907467365,-500.0,0.0005589,120]
[321135631,1711907467374,-629.06519628,0.0005589,120]
[321135632,1711907467386,-1276.31,0.0005589,120]
[321135633,1711907467395,-500.0,0.0005589,120]
[321135634,1711907467405,-500.0,0.0005589,120]
[321135635,1711907467415,-2818.95,0.0005589,120]
[321135636,1711907467426,-577.42,0.0005589,120]
[321135637,1711907467435,-500.0,0.0005589,120]
[321135638,1711907467444,-1477.96,0.0005589,120]
[321135639,1711907467454,-1654.56,0.0005589,120]
[321135640,1711907467463,-591.88,0.0005589,120]
[321135641,1711907467473,-500.0,0.0005589,120]
[321135642,1711907467483,-500.0,0.0005589,120]
[321135643,1711907467492,-811.9,0.0005589,120]
[321135644,1711907467501,-500.0,0.0005589,120]
[321135645,1711907467511,-1667.23,0.0005589,120]
[321135646,1711907467521,-540.65,0.0005589,120]
[321135647,1711907467531,-197.843539,0.0005589,120]
[321135648,1711907467547,-500.0,0.0005589,120]
[321135649,1711907467557,-197.843539,0.0005589,120]
[321135650,1711907467568,-500.0,0.0005589,120]
[321135651,1711907467578,-500.0,0.0005589,120]
[321135652,1711907467588,-500.0,0.0005589,120]
[321135653,1711907467598,-500.0,0.0005589,120]
[321135654,1711907467608,-718.34,0.0005589,120]
[321135655,1711907467617,-500.0,0.0005589,120]
[321135656,1711907467628,-1412.62,0.0005589,120]
[321135657,1711907467637,-505.8,0.0005589,120]
[321135658,1711907467648,-2163.44,0.0005589,120]
[321135659,1711907467657,-500.0,0.0005589,120]
[321135660,1711907467667,-500.0,0.0005589,120]
[321135661,1711907467677,-500.0,0.0005589,120]
[321135662,1711907467686,-4640.93,0.0005589,120]
[321135663,1711907467696,-2308.94,0.0005589,120]
[321135664,1711907467706,-4439.46,0.0005589,120]
[321135665,1711907467716,-500.0,0.0005589,120]
[321135666,1711907467726,-500.0,0.0005589,120]
[321135667,1711907467735,-713.74,0.0005589,120]
[321135668,1711907467746,-574.37,0.0005589,120]
[321135669,1711907467755,-186.25492146,0.0005589,120]
[321135670,1711907467765,-500.0,0.0005589,120]
[321135671,1711907467775,-500.0,0.0005589,120]